Cogmind - Beta 11.1 *** ADVENTURER MODE // 2022.05.13 @ 18:47:10 Player: Fgdfgfthgr Result: Destroyed by L-31 Rogue with Katana Performance ------------- Evolutions (0) 0 Regions Visited (4) 800 Robots Destroyed (30) 150 Value Destroyed (559) 559 Prototype IDs (28) 560 Alien Tech Used (0) 0 Bonus (-574) -574 TOTAL SCORE: 1495 Bonus ------- Follower Combat Kills 7 Aligned with FarCom 300 Friendly Fire -881 Cogmind --------- Core Integrity 0/250 Matter 275/300 Energy 88/100 System Corruption 0% Temperature Warm (166) Movement Treading (240) Ox1 Location -9/Mines Parts ------- > --- POWER (1) -------- (None) > --- PROPULSION (2) --- Light Treads Light Treads > --- UTILITY (2) ------ High-capacity Storage Unit Hardened Light Armor Plating > --- WEAPON (2) ------- Advanced Beam Cannon Light Assault Rifle > --- INVENTORY (20) --- Light Treads Advanced Myomer Leg Advanced Myomer Leg Improved Heat Sink Gravity Neutralizer Experimental Targeting Computer Advanced Weapon Cycler Hardened Light Armor Plating Hardened Light Armor Plating AS-neutralizer No. 17b Advanced Beam Cannon Advanced Beam Cannon Advanced Beam Cannon Light Assault Rifle 8R-AWN's Boregun Grenade Launcher Rocket Launcher Datajack Peak State ------------ > --- POWER ------------ Light Ion Engine > --- PROPULSION ------- Light Treads Light Treads > --- UTILITY ---------- High-capacity Storage Unit Hardened Light Armor Plating > --- WEAPON ----------- Advanced Beam Cannon Light Assault Rifle > --- INVENTORY -------- Light Treads Advanced Myomer Leg Advanced Myomer Leg Improved Heat Sink Gravity Neutralizer Experimental Targeting Computer Advanced Weapon Cycler Hardened Light Armor Plating Hardened Light Armor Plating AS-neutralizer No. 17b Advanced Beam Cannon Advanced Beam Cannon Advanced Beam Cannon Light Assault Rifle 8R-AWN's Boregun Grenade Launcher Rocket Launcher Datajack [Rating: 17] Favorites ----------- Power Light Nuclear Core Engine Ion Engine Power Core Light Nuclear Core Propulsion Light Treads Treads Light Treads Leg Aluminum Leg Utility Heat Sink Device Heat Sink Storage High-capacity Storage Unit Protection Hardened Light Armor Plating Weapon Assault Rifle Energy Gun Particle Gun Energy Cannon Advanced Beam Cannon Ballistic Gun Assault Rifle Launcher Grenade Launcher Build | -11 -10 -10 -10 -9 ------- Run | Scr Mat Min Exi Min Slots Evolved . | . . . . . Power . | . . . . . Propulsion . | . . . . . Utility . | . . . . . Weapon . | . . . . . Parts Attached 35 | . 19 1 11 4 Power 3 | . 1 1 1 . Engine 2 | . 1 . 1 . Core 1 | . . 1 . . Reactor . | . . . . . Propulsion 6 | . 3 . 2 1 Treads 5 | . 2 . 2 1 Leg 1 | . 1 . . . Wheel . | . . . . . Hover . | . . . . . Flight . | . . . . . Utility 6 | . 4 . 1 1 Device 1 | . 1 . . . Storage 2 | . 2 . . . Processor . | . . . . . Hackware . | . . . . . Protection 3 | . 1 . 1 1 Artifact . | . . . . . Weapon 20 | . 11 . 7 2 Energy Gun 4 | . 3 . 1 . Energy Cannon 2 | . 1 . . 1 Ballistic Gun 10 | . 5 . 4 1 Ballistic Cannon . | . . . . . Launcher 4 | . 2 . 2 . Special Weapon . | . . . . . Impact Weapon . | . . . . . Slashing Weapon . | . . . . . Piercing Weapon . | . . . . . Special Melee Weapon . | . . . . . Unidentified Prototypes . | . . . . . Parts Lost 8 | . . . 5 3 Power 2 | . . . 1 1 Propulsion 2 | . . . 2 . Utility 2 | . . . 1 1 Weapon 2 | . . . 1 1 Highest Loss Streak 3 | . . . 3 3 To Critical Strikes 3 | . . . 3 . Average Slot Usage (%) 99 | . 99 100 99 98 Engine 6 | . 14 . 2 13 Core 7 | . . 13 11 . Treads 25 | . 20 28 27 28 Leg 2 | . 7 . . . Device 11 | . 11 14 10 . Storage 14 | . 14 14 14 14 Protection 2 | . 1 . 3 14 Energy Gun 4 | . 10 . . . Energy Cannon 8 | . 3 14 10 . Ballistic Gun 15 | . 13 14 16 26 Naked Turns . | . . . . . Heaviest Build 52 | 13 52 52 52 52 Greatest Support 40 | 20 40 40 40 40 Greatest Overweight (x) 1 | . 1 1 1 1 Average Overweight (x) . | . . 1 1 1 Largest Inventory Capacity 20 | . 20 20 20 20 Average Capacity 18 | . 14 20 20 20 Most Carried 20 | . 20 20 20 20 Average Carried 17 | . 12 19 19 19 Final Capacity 20 | 8 20 20 20 20 Final Carried 20 | 6 20 20 20 18 Class Distribution -------------------- 100% | Mutant Dominant Class ---------------- Mutant | -10/Materials Mutant | -10/Mines Mutant | -10/Exiles Mutant | -9/Mines Resources | -11 -10 -10 -10 -9 ----------- Run | Scr Mat Min Exi Min Matter Collected 988 | 200 281 28 322 157 Remotely . | . . . . . Salvage Created 960 | . 566 102 131 161 Parts 69 | . 46 4 7 12 Haulers Intercepted . | . . . . . Recyclers Shooed 2 | . 1 . . 1 Parts Field Recycled . | . . . . . Retrieved Matter . | . . . . . Parts Self-Destructed . | . . . . . Prevented . | . . . . . Kills | -11 -10 -10 -10 -9 ------- Run | Scr Mat Min Exi Min Combat Hostiles Destroyed 25 | . 15 2 3 5 Guns 19 | . 13 . 1 5 Cannons 4 | . 2 2 . . AOE 2 | . . . 2 . Classes Destroyed 7 | . 6 . 1 . Worker 2 | . 1 . . 1 Builder 1 | . 1 . . . Recycler 1 | . 1 . . . Watcher 3 | . 3 . . . Swarmer 11 | . 8 . . 3 Grunt 11 | . 7 2 . 2 Assembled 7 | . . . 7 . Best Kill Streak 7 | . 7 2 2 3 Combat Bots Only 6 | . 6 2 2 3 Max Kills in Single Turn 5 | . 1 1 5 2 Gunslinging 1 | . . . . 1 Exploded 1 | . . . 1 . Melee . | . . . . . Uniques/NPCs Destroyed 1 | . . . 1 . 8R-AWN (-10/Exiles) Combat | -11 -10 -10 -10 -9 -------- Run | Scr Mat Min Exi Min Damage Taken 1768 | . 481 101 870 316 Core 254 | . 101 21 106 26 Absorbed by Shields . | . . . . . Redirected to Shielding 2 | . 2 . . . Core Remaining (%) 100 | 100 . . . . Volleys Fired 129 | . 51 7 51 20 Largest 2 | . 2 2 2 2 Hottest 88 | . 88 88 63 88 Shots Fired 252 | . 98 14 100 40 Gun 226 | . 88 7 96 35 Cannon 20 | . 8 7 . 5 Launcher 6 | . 2 . 4 . Special . | . . . . . Kinetic 179 | . 49 7 88 35 Thermal 32 | . 20 7 . 5 Explosive 6 | . 2 . 4 . Electromagnetic 35 | . 27 . 8 . Robot Hit Streak 78 | . 20 28 78 26 Robot Miss Streak 2 | . 2 . 1 2 Penetration Max . | . . . . . Secondary Targets 8 | . 7 . . 1 Max Gunslinging Chain 1 | . 1 . . 1 Shots Hit Robots 218 | . 74 12 96 36 Core Hits 75 | . 28 4 33 10 Critical Kills . | . . . . . Critical Parts Destroyed . | . . . . . Critical Strikes 2 | . 2 . . . Corrupt 2 | . 2 . . . Melee Attacks . | . . . . . Impact . | . . . . . Slashing . | . . . . . Piercing . | . . . . . Sneak Attacks . | . . . . . Combat Hostiles . | . . . . . Follow-up Attacks . | . . . . . Damage Inflicted 3277 | . 1022 209 1581 465 Guns 2308 | . 804 58 1084 362 Cannons 432 | . 178 151 . 103 Explosions 537 | . 40 . 497 . Melee . | . . . . . Ramming . | . . . . . Kinetic 1811 | . 314 58 1077 362 Thermal 626 | . 372 151 . 103 Explosive 537 | . 40 . 497 . Electromagnetic 303 | . 296 . 7 . Impact . | . . . . . Slashing . | . . . . . Piercing . | . . . . . Highest Corruption . | . . . . . Average Corruption . | . . . . . Corruption Purged . | . . . . . Corruption Blocked . | . . . . . Overload Shots . | . . . . . Overflow Damage 29 | . . . . 29 Projectiles 29 | . . . . 29 Explosions . | . . . . . Melee . | . . . . . Knockbacks . | . . . . . Impact . | . . . . . Kinetic . | . . . . . Secondary . | . . . . . Self-Inflicted Damage . | . . . . . Shots . | . . . . . Rammed . | . . . . . Targets Rammed . | . . . . . Kicked . | . . . . . Crushed . | . . . . . Highest Temperature 182 | . 182 78 120 166 Average Temperature 50 | . 51 51 61 37 Received Heat Transfer 360 | . 246 90 . 24 Siege Activations . | . . . . . Robots Corrupted 1 | . 1 . . . Combat Hostiles . | . . . . . Parts Fried 1 | . 1 . . . Impact Corruptions . | . . . . . Robots Melted . | . . . . . Combat Hostiles . | . . . . . Parts Melted 2 | . 1 1 . . Heat Transferred 1184 | . 740 259 . 185 Parts Sabotaged . | . . . . . Parts Stolen . | . . . . . Parts Stripped . | . . . . . Power Chain Reactions . | . . . . . Missiles Intercepted . | . . . . . Alert | -11 -10 -10 -10 -9 ------- Run | Scr Mat Min Exi Min Peak Influence 299 | . 299 93 . 120 Initial 28 | . . 28 . . Average 84 | . 137 26 . 65 Maximum Alert Level 1 | . 1 . . . Low Security (%) 85 | . 71 100 . 100 Level 1 14 | . 28 . . . Level 2 . | . . . . . Level 3 . | . . . . . Level 4 . | . . . . . Level 5 . | . . . . . High Security . | . . . . . Max Security . | . . . . . Squads Dispatched 3 | . 3 . . . Investigation 3 | . 3 . . . Extermination . | . . . . . Reinforcement . | . . . . . Assault . | . . . . . Garrison . | . . . . . Intercept . | . . . . . Searches Triggered . | . . . . . Construction Impeded . | . . . . . Haulers Reinforced . | . . . . . Active Scanning Responses . | . . . . . Cargo Convoy Interrupts . | . . . . . Stealth | -11 -10 -10 -10 -9 --------- Run | Scr Mat Min Exi Min Distress Signals 1 | . 1 . . . Communications Jammed . | . . . . . Distress Signals . | . . . . . Times Spotted 34 | . 22 2 3 7 Peak Tracking Total 7 | . 7 2 4 4 Tactical Retreats 2 | . 2 . . . Traps | -11 -10 -10 -10 -9 ------- Run | Scr Mat Min Exi Min Traps Triggered 1 | . 1 . . . Indirectly . | . . . . . Trap Hack Attempts . | . . . . . Triggered . | . . . . . Disarmed . | . . . . . Reprogrammed . | . . . . . Reused . | . . . . . Traps Extracted . | . . . . . Installed . | . . . . . Triggered . | . . . . . Machines | -11 -10 -10 -10 -9 ---------- Run | Scr Mat Min Exi Min Machines Disabled 3 | . . . 3 . Max in Single Turn 3 | . . . 3 . Machines Sabotaged . | . . . . . Garrisons Compromised . | . . . . . Overloaded Fab Kills . | . . . . . Hacking | -11 -10 -10 -10 -9 --------- Run | Scr Mat Min Exi Min Machines Accessed 11 | . 9 . 2 . Terminals 7 | . 7 . . . Fabricators . | . . . . . Repair Stations . | . . . . . Recycling Units 2 | . 2 . . . Scanalyzers . | . . . . . Garrison Access . | . . . . . Total Hacks 34 | . 32 . 2 . Successful 20 | . 18 . 2 . Failed 13 | . 13 . . . Catastrophic . | . . . . . Database Lockouts 1 | . 1 . . . Manual 19 | . 17 . 2 . Terminals 30 | . 30 . . . Fabricators . | . . . . . Repair Stations . | . . . . . Recycling Units 2 | . 2 . . . Scanalyzers . | . . . . . Garrison Access . | . . . . . Terminal Hacks 15 | . 13 . 2 . Record 1 | . . . 1 . Robot Analysis 4 | . 4 . . . Prototype ID Bank 2 | . 2 . . . Terminal Index 1 | . 1 . . . Recycling Unit Index 1 | . 1 . . . Scanalyzer Index 1 | . 1 . . . Locate Traps 1 | . 1 . . . Dispatch Records 1 | . 1 . . . Hauler Manifests 1 | . 1 . . . Zone Layout 1 | . 1 . . . EX-Prototype ID Bank 1 | . . . 1 . Fabricator Hacks . | . . . . . Repair Station Hacks . | . . . . . Recycling Unit Hacks . | . . . . . Scanalyzer . | . . . . . Garrison Access Hacks . | . . . . . Unauthorized Hacks 5 | . 5 . . . Terminals 3 | . 3 . . . Botnet 2 | . 2 . . . Operators 1 | . 1 . . . Fabricators . | . . . . . Repair Stations . | . . . . . Recycling Units 2 | . 2 . . . Tunnel 2 | . 2 . . . Scanalyzers . | . . . . . Garrison Access . | . . . . . Data Cores Recovered . | . . . . . Used . | . . . . . Hacking Detections 6 | . 6 . . . Full Trace Events . | . . . . . Feedback Events . | . . . . . Feedback Blocked . | . . . . . Robot Schematics Acquired . | . . . . . Robots Built . | . . . . . Authchips . | . . . . . Time . | . . . . . Total Robot Build Rating . | . . . . . Part Schematics Acquired . | . . . . . Parts Built . | . . . . . Authchips . | . . . . . Time . | . . . . . Total Part Build Rating . | . . . . . Parts Repaired . | . . . . . Time . | . . . . . Parts Recycled . | . . . . . Recycled Matter . | . . . . . Retrieved Matter . | . . . . . Retrieved Components . | . . . . . Parts Scanalyzed . | . . . . . Part Schematics Acquired . | . . . . . Parts Damaged . | . . . . . Bothacking | -11 -10 -10 -10 -9 ------------ Run | Scr Mat Min Exi Min Used RIF Installer . | . . . . . Robots Hacked . | . . . . . Non-combat . | . . . . . Combat . | . . . . . Robot Hacks Applied . | . . . . . Relay Couplers Released . | . . . . . Fabnet Peak Effective % . | . . . . . Robots Rewired . | . . . . . Allies Hacked . | . . . . . Hacks Repelled . | . . . . . Allies | -11 -10 -10 -10 -9 -------- Run | Scr Mat Min Exi Min Total Allies 2 | . . . . 2 Largest Group 2 | . . . . 2 Highest-Rated Group 47 | . . . . 47 Highest-Rated Ally 31 | . . . . 31 Total Orders . | . . . . . Ally Attacks 6 | . . . . 6 Total Damage 82 | . . . . 82 Kills 1 | . . . . 1 Allies Corrupted . | . . . . . Allies Melted . | . . . . . Intel | -11 -10 -10 -10 -9 ------- Run | Scr Mat Min Exi Min Robot Analysis Total 4 | . 4 . . . Derelict Logs Recovered 1 | . . 1 . . Drone Launches . | . . . . . Drone Recoveries . | . . . . . Exploration | -11 -10 -10 -10 -9 ------------- Run | Scr Mat Min Exi Min Turns Passed 4195 | . 1547 1353 1091 204 Spaces Moved 1707 | 1 733 534 379 60 Core . | . . . . . Treads 1455 | . 482 534 379 60 Legs 252 | 1 251 . . . Wheels . | . . . . . Hover . | . . . . . Flight . | . . . . . Fastest Speed 120 | 120 120 240 240 240 Average Speed 215 | 120 182 240 240 240 Slowest Speed 240 | 120 240 240 240 240 Overloaded Moves . | . . . . . Propulsion Burnouts . | . . . . . Robots Hopped . | . . . . . Cave-ins Triggered . | . . . . . Exploration Rate (%) 54 | 2 97 99 56 18 Regions Visited 4 Branch Regions 3 Pre-discovered Areas 3 | . 2 . 1 . Known Exits Taken . | . . . . . Unknown Exits Taken 4 | 1 1 1 1 . Scrap Searched 2 | . . 1 . 1 Spaces Dug 9 | . 9 . . . Terrain Destroyed 39 | . 17 . 22 . Melee . | . . . . . Projectile . | . . . . . AOE 39 | . 17 . 22 . Terrain Rammed . | . . . . . Walls Destroyed . | . . . . . Machines Disabled . | . . . . . Actions | -11 -10 -10 -10 -9 --------- Run | Scr Mat Min Exi Min Total 2002 | . 859 593 465 85 Wait 65 | . 18 47 . . Move 1703 | . 732 533 378 60 Hop . | . . . . . Pick Up 38 | . 21 2 15 . Fast Attach 6 | . 4 1 . 1 Attach 12 | . 4 . 6 2 Detach 1 | . 1 . . . Swap 17 | . 11 . 5 1 Drop 31 | . 17 3 10 1 Fire 129 | . 51 7 51 20 Melee . | . . . . . Ram . | . . . . . Kick . | . . . . . Crush . | . . . . . Escape Stasis . | . . . . . Rewire . | . . . . . Trap . | . . . . . Miscellaneous . | . . . . . Route ------- -11/Scrapyard -10/Materials (discovered 4 exits: [*Mat x3] / [*Min]) -10/Mines (discovered 3 exits: [*Mat x2] / *Exi) -10/Exiles -9/Mines History --------- Turn | Location | Event 1 | -11/Scrapyard | Discovered new exit (range 0) 1 | -11/Scrapyard | Entered Materials 157 | -10/Materials | Discovered new exit (range 6) 210 | -10/Materials | Central database locked down 336 | -10/Materials | Build established: Mutant 540 | -10/Materials | Discovered new exit (range 6) 880 | -10/Materials | Discovered new exit (range 4) 1261 | -10/Materials | Discovered new exit (range 15) 1548 | -10/Materials | Entered Mines 1633 | -10/Mines | Assembled infested the area 1756 | -10/Mines | Discovered new exit (range 5) 1897 | -10/Mines | Discovered new exit (range 5) 2127 | -10/Mines | Received a Rocket Launcher from a helpful Derelict 2393 | -10/Mines | Learned Materials stockpile data 2891 | -10/Mines | Discovered new exit (range 5) 2901 | -10/Mines | Entered Exiles 2961 | -10/Exiles | Met 8R-AWN 2985 | -10/Exiles | Discovered new exit (range 15) 3165 | -10/Exiles | Met EX-HEX 3258 | -10/Exiles | Met EX-DEC 3270 | -10/Exiles | Learned location of Zion (-7) 3318 | -10/Exiles | Met EX-BIN 3364 | -10/Exiles | Aligned with FarCom system 3366 | -10/Exiles | Given EX-Vault access code 3443 | -10/Exiles | Opened EX-Vault 3501 | -10/Exiles | Warned to stay clear of 0b10 Research branches 3716 | -10/Exiles | Attacked by the Exiles 3728 | -10/Exiles | Core integrity fell below 50% 3838 | -10/Exiles | Core integrity fell below 20% 3859 | -10/Exiles | Lost 3 parts (1p1n1w) 3872 | -10/Exiles | Destroyed 8R-AWN 3882 | -10/Exiles | Found Prototype Ballistic Gun 3896 | -10/Exiles | Found Prototype Processor 3899 | -10/Exiles | Found Prototype Device 3992 | -10/Exiles | Entered Mines 4196 | -9/Mines | Destroyed by L-31 Rogue with Katana Last Messages --------------- 04124_ U-05 Engineer builds a Wall. 04150_ EV-6U5(g) destroyed. 04153_ R-06 Scavenger collects Imp. Heat Sink. 04158_ G-34 Mercenary destroyed. 04158_ R-06 Scavenger collects Aluminum Leg. 04160_ K-01 Serf collects debris. 04161_ R-06 Scavenger collects Imp. Heat Sink. 04169_ G-34 Mercenary destroyed. 04170_ Acquired 32 matter. 04171_ Hrd. Light Armor Plating destroyed. 04173_ Acquired 10 matter. 04174_ Acquired 2 matter. 04179_ Assault Rifle destroyed. 04181_ Lgt. Treads severed. 04182_ Acquired Lgt. Treads. 04186_ Lgt. Ion Engine destroyed. 04192_ Destroyed Imp. Ion Engine. 04193_ K-01 Serf collects debris. 04195_ Destroyed Imp. Aluminum Leg. 04196_ K-01 Serf collects debris. Map ----- +----------------------------------------------------+ | ????????????????????????????????????????????????? | | ????????????????????????????????????????????????? | | ????????????????????????????????????????????????? | | ????????????????????????????????????????????????? | | ????????????????????????????????????????????????? | | ????????????????????????????????????????????????? | | ????????????????????????????????????????????????? | | ????????????????????????????????????????????????? | | ????????????????????????????????????????????????? | | ????????????????????????????????????????????????? | | ????????????????????????????????????????????????? | | ????????????????????????????????????????????????? | | ????????????????????????????????????????????????? | | ????????????????????????????????????????????????? | | ????????????????????????????????????????????????? | | ????????????????????????????????????????????????? | | ??????????????????####??????????????????????????? | | ?????????????????## ???????????????????????????? | | ????????????????## ???###?????????????????????? | | ???????????????## ???# ?????????????????????? | | ???????????????# ???#*#?????????????????????? | | ???????????????# #???#[#?????????????????????? | | ????????????????# #???#k#?????????????????????? | | ?????????????????#//#???#=#?????????????????????? | | ???????????## #### #####l#?????????????????????? | | ??????# k z r !==[@#?????????????????????? | | ???????????####### [#######?????????????????????? | | ?????????????????# %#???????????????????????????? | | ?????????????????#= #???????????????????????????? | | ?????????????????# #???????????????????????????? | | ?????????????????# #???????????????????????????? | | ?????????????????# %##??????????????????????????? | | ?????????????????#%"%#??????????????????????????? | | ?????????????????###!#??????????????????????????? | | ???????????????????#[#??????????????????????????? | | ?????????????????### #??????????????????????????? | | ????????????###### [*##?????????????????????????? | | ???????????## #?????????????????????????? | | ?????####### ##????????????????????????? | | ???? ##???????????????????????? | | ????? ##??????????????????????? | | ??????#### ##?????????????????????? | | ????????# #?????????????????????? | | ??????# ### #?????????????????????? | | ?????? ???## ## ##?????????????????????? | | ??????? ?????## ## ##??????????????????????? | | ????????????????# ## #???????????????????????? | | ????????????????# ## ##??????????????????????? | | ????????????????# ### #??????????????????????? | | ????????????????# #?## #??????????????????????? | +----------------------------------------------------+ Best States ------------- Heat Dissipation 35 Energy Generation 14 Energy Capacity 250 Matter Stores 300 Matter Capacity 300 Sight Range 16 Terrain Scan Density 10 Armor Coverage 150 Resistance: KI 20 Resistance: TH 20 Resistance: EX 20 Resistance: EM 20 Resistance: I 20 Resistance: S 20 Resistance: P 20 Utility Shielding 33 Evasion (%) 55 Recoil Reduction 2 Offensive Hacking 10 Item Schematics ----------------- None Robot Schematics ------------------ None Fabricated ------------ Nothing Alien Tech Used ----------------- None Achievements -------------- None Challenges ------------ None Game ------ Seed CorruptionGuidedMantle Manual? 0 Play Time 00:15:43 Cumulative 188.5 hours Start 2022.05.13 @ 18:32:18 End 2022.05.13 @ 18:47:10 Sessions 1 Manual Loads 0 Difficulty Adventurer Special Mode None Game No. 88 Rogue 0 Adventurer 88 Explorer 0 Win Type - Total 14 Types 8/1/1/1/1/0/0/1/1 Lore% 88 Gallery% 84 Achievement% 75 Wizard Run 0 Options --------- ASCII 0 Keyboard 1 Movement Numpad Keybinds 0 Fullscreen 2 Font 18/SmallcapsGlow Map View 76x50 Tactical HUD 1 Map Filters NONE Filters NONE Steam 1 RUN: 84e97875-b527-4485-a17d-07f9f27336f4